[Event "44th Chess Olympiad Open 2022"]
[Site "Chennai"]
[Date "2022.07.31"]
[Round "3.6"]
[White "Guseinov, Gadir"]
[Black "Krysa, Leandro"]
[Result "1/2-1/2"]
[WhiteElo "2668"]
[BlackElo "2515"]
[Annotator "TA"]
[PlyCount "185"]
[EventDate "2022.??.??"]
[TimeControl "60"]

{[%evp 9,185,30,23,-13,-5,-25,0,-32,-30,-50,-29,-43,-41,-74,-4,-89,-99,-82,-56,
-25,-38,-34,-16,-48,-8,-6,0,0,60,52,71,78,76,80,88,83,80,80,106,105,97,113,108,
108,109,120,136,128,129,121,129,125,135,126,129,127,128,128,120,113,111,96,96,
96,116,116,116,116,116,116,160,160,160,116,116,116,116,116,116,96,96,96,96,96,
96,96,96,96,96,96,96,96,96,96,96,96,96,96,96,96,96,96,96,96,96,8,8,0,96,96,96,
96,96,96,96,96,96,96,96,96,96,0,96,96,96,8,96,8,8,0,96,96,96,80,96,0,96,0,96,
96,96,85,85,80,81,81,81,80,81,0,0,0,0,0,0,0,0,0,0,0,0,0,0,0,0,0,0,0,0,0,0,0,0,
0,0,0,0,0]} 1. e4 {[%emt 0:00:38]} c6 {[%emt 0:00:14]} 2. d4 {[%emt 0:00:07]}
d5 {[%emt 0:00:09]} 3. e5 {[%emt 0:00:05]} Bf5 {[%emt 0:00:20]} 4. h4 {[%emt 0:
00:00]} a6 {[%emt 0:00:22]} 5. h5 {[%emt 0:09:04]} c5 {[%emt 0:00:19]} 6. g4 {
[%emt 0:02:53] B12: Caro-Kann: Advance Variation.} (6. dxc5 $5 {[%cal Rf1d3]}
Nc6 7. Bd3 Bxd3 8. cxd3 $11) 6... Bd7 {[%emt 0:01:12]} 7. c3 {[%emt 0:05:29]}
e6 {[%emt 0:10:04] [#]} 8. Nf3 $146 {[%emt 0:08:27]} ({Predecessor:} 8. f4 Nh6
9. Na3 Nc6 10. Nc2 Qb6 11. Bh3 cxd4 12. cxd4 Nb4 13. Nxb4 Bxb4+ 14. Kf2 {
½-½ (55) Balogh,C (2616)-Popov,V (2590) Moscow 2007}) 8... Nc6 {[%emt 0:00:
00]} 9. Bh3 {[%emt 0:11:12]} f6 {[%emt 0:08:39]} 10. O-O {[%emt 0:07:04]} Nh6 {
[%emt 0:14:58]} 11. Re1 {[%emt 0:01:50]} cxd4 {[%emt 0:10:55]} (11... fxe5 $17
{And now ...e4 would win.} 12. dxe5 Be7) 12. cxd4 {[%emt 0:11:03] [#]} (12.
exf6 $1 $11 gxf6 13. cxd4) 12... fxe5 $1 $17 {[%emt 0:08:03]} 13. dxe5 {
[%emt 0:01:08]} Bb4 {[%emt 0:05:40]} 14. Nc3 {[%emt 0:03:43]} O-O {[%emt 0:00:
00][%cal Yd5d4]} 15. Qd3 {[%emt 0:08:49] Prevents d4.} Be7 {[%emt 0:12:51]
Against Ng5} 16. a3 $1 {[%emt 0:00:56] Prevents Nb4.} Nf7 {[%emt 0:07:16][%cal
Yd5d4]} 17. Nxd5 {[%emt 0:16:42]} exd5 {[%emt 0:01:20]} 18. e6 {[%emt 0:00:04]}
Bxe6 {[%emt 0:02:40]} 19. Rxe6 $14 {[%emt 0:00:06]} Ng5 {[%emt 0:01:57]} 20.
Bxg5 {[%emt 0:01:25]} Bxg5 {[%emt 0:00:33]} 21. Rd1 {[%emt 0:01:45]} ({Don't
play} 21. Nxg5 Qxg5 22. Rd1 Rad8 $11) 21... Kh8 {[%emt 0:02:50]} 22. Bg2 {
[%emt 0:02:36]} Bf6 {[%emt 0:00:29]} 23. b4 {[%emt 0:00:47]} h6 {[%emt 0:01:51]
} 24. Qxd5 {[%emt 0:01:53] 0x0.0005eb95896fdp-1022s more active pieces.} Qxd5 {
[%emt 0:00:46]} 25. Rxd5 {[%emt 0:00:01]} Rad8 {[%emt 0:00:31]} 26. Red6 {
[%emt 0:00:37]} Rxd6 {[%emt 0:00:46]} 27. Rxd6 {[%emt 0:00:01]} Rd8 {[%emt 0:
00:00]} 28. Rxd8+ {[%emt 0:00:13]} Nxd8 $16 {[%emt 0:01:05] Endgame KBN-KBN}
29. Ne1 {[%emt 0:01:27]} Kg8 {[%emt 0:00:42]} 30. Bd5+ {[%emt 0:00:03]} Kf8 {
[%emt 0:00:08] [#]} 31. Kg2 $1 {[%emt 0:00:10]} Bb2 {[%emt 0:00:59]} 32. a4 {
[%emt 0:02:30]} Bc3 {[%emt 0:00:52]} 33. Nc2 {[%emt 0:00:07]} Ke7 {[%emt 0:00:
00]} 34. Kf3 {[%emt 0:00:00]} b5 {[%emt 0:00:46]} 35. axb5 {[%emt 0:00:35]}
axb5 {[%emt 0:00:01]} 36. Ke4 {[%emt 0:00:08]} Kd6 {[%emt 0:01:00]} 37. Nd4 {
[%emt 0:02:46]} Ke7 {[%emt 0:00:23]} 38. Nxb5 {[%emt 0:02:05]} Bxb4 {[%emt 0:
00:00]} 39. Kf5 {[%emt 0:00:10]} Be1 {[%emt 0:00:58]} 40. f3 {[%emt 0:00:26]}
Bh4 {[%emt 0:00:30]} 41. Nd4 {[%emt 0:13:27] Black must now prevent Kg6.} Bf6 {
[%emt 0:07:02]} 42. Ne2 {[%emt 0:02:12]} Kd6 {[%emt 0:03:30]} 43. Ke4 {[%emt 0:
00:00]} Be5 {[%emt 0:04:41]} 44. Nc1 {[%emt 0:00:47]} Bf6 {[%emt 0:01:24]} 45.
Nb3 {[%emt 0:01:01]} Bc3 {[%emt 0:08:49]} 46. Nd4 {[%emt 0:00:43] Threatens to
win with Nb5+.} Ke7 {[%emt 0:02:02]} 47. Ne2 {[%emt 0:00:23]} Bb2 {[%emt 0:00:
00]} 48. Ng3 {[%emt 0:00:53]} Ne6 {[%emt 0:02:03]} 49. Nf5+ {[%emt 0:01:38]}
Kf6 {[%emt 0:00:13]} 50. Bxe6 {[%emt 0:00:13]} Kxe6 {[%emt 0:00:02] KB-KN} 51.
Nh4 {[%emt 0:01:35]} Ba1 {[%emt 0:00:52]} 52. Ng6 {[%emt 0:00:15]} Bb2 {
[%emt 0:00:29]} 53. Nf4+ {[%emt 0:00:27]} Kf6 {[%emt 0:00:05]} 54. Kd5 {
[%emt 0:00:03]} Be5 {[%emt 0:01:00]} 55. Ng6 {[%emt 0:00:06]} Bb8 {[%emt 0:00:
00]} 56. f4 {[%emt 0:02:45]} Ba7 {[%emt 0:01:16]} 57. Kd6 {[%emt 0:00:22]} ({
White should play} 57. Ne5 $16) 57... Be3 $11 {[%emt 0:00:29]} 58. Kd5 {
[%emt 0:03:14]} Bd2 {[%emt 0:00:32]} (58... Ba7 $1 $11 {remains equal.}) 59.
Ke4 $16 {[%emt 0:00:21]} Bc3 {[%emt 0:00:18]} 60. Ne5 {[%emt 0:00:20]} Bb2 {
[%emt 0:00:34]} 61. Nd7+ {[%emt 0:00:44]} Ke6 {[%emt 0:00:21]} 62. Nc5+ {
[%emt 0:00:15]} Kf6 {[%emt 0:00:00]} 63. Kd5 {[%emt 0:00:05]} Ba1 {[%emt 0:00:
00]} 64. Kd6 {[%emt 0:01:10]} Bd4 {[%emt 0:00:41]} 65. Kd5 {[%emt 0:01:35]} (
65. Nd3 $16) 65... Bb2 {[%emt 0:00:13]} (65... Ba1 $1 $11) 66. Nd3 {[%emt 0:00:
00]} Bc3 {[%emt 0:00:17]} 67. Kd6 {[%emt 0:00:09]} (67. Nf2 $16 {Ne4+ would
kill now.} Bb2 68. Ne4+ Kf7 69. Nd6+ Kf6 70. Ne4+ Kf7 71. Nc5) 67... Bd4 {
[%emt 0:00:28]} (67... Bd2 $11 {keeps the balance.}) 68. Kd7 {[%emt 0:00:10]} (
{Better is} 68. Ne5 $16) 68... Be3 $11 {[%emt 0:00:52]} 69. Kd6 {[%emt 0:07:23]
} (69. Ke8 $11) 69... Bd4 $16 {[%emt 0:00:09]} 70. Ne5 {[%emt 0:00:23]} Bb2 {
[%emt 0:00:46]} 71. Kd5 {[%emt 0:00:16]} Ba1 {[%emt 0:00:34]} 72. Nd3 {[%emt 0:
00:00]} Bc3 {[%emt 0:00:24]} 73. Nc5 {[%emt 0:00:02] Intending Ne4+ and mate.}
Bb2 {[%emt 0:00:34]} 74. Ne4+ {[%emt 0:00:14]} Kf7 {[%emt 0:00:17]} 75. Kd6 {
[%emt 0:00:12]} Bd4 {[%emt 0:00:34]} 76. Kd7 {[%emt 0:00:21]} Be3 {[%emt 0:00:
00]} 77. f5 {[%emt 0:00:47]} Bf4 {[%emt 0:00:20]} 78. Nc5 {[%emt 0:01:08]} Be5
{[%emt 0:00:25]} 79. Nb7 {[%emt 0:00:14]} (79. Kc6 $16) 79... Kf6 $11 {[%emt 0:
00:00] The position is equal.} 80. Ke8 {[%emt 0:00:12]} Kg5 {[%emt 0:00:30]}
81. Kf7 {[%emt 0:00:05]} Kxg4 {[%emt 0:00:09]} 82. Kg6 {[%emt 0:00:00]} Bb2 {
[%emt 0:00:40]} 83. Nc5 {[%emt 0:00:30]} Ba1 {[%emt 0:00:26]} 84. Ne4 {[%emt 0:
00:00]} Bd4 {[%emt 0:00:22]} 85. f6 {[%emt 0:02:12]} Bxf6 {[%emt 0:00:48]} 86.
Nxf6+ {[%emt 0:00:15]} gxf6 {[%emt 0:00:04]} 87. Kxh6 {[%emt 0:00:03] KP-KP} f5
{[%emt 0:00:06]} 88. Kg6 {[%emt 0:00:02] White threatens h6 and mate.} f4 {
[%emt 0:00:05]} 89. h6 {[%emt 0:00:01] White wants to mate with h7.} f3 {
[%emt 0:00:04]} 90. h7 {[%emt 0:00:02]} f2 {[%emt 0:00:05]} 91. h8=Q {[%emt 0:
00:00]} f1=Q {[%emt 0:00:05] Prevents Qh1.} 92. Qf6 {[%emt 0:00:00]} Qxf6+ {
[%emt 0:00:10]} 93. Kxf6 {[%emt 0:05:11] Black defended with fortune. Weighted
Error Value: White=0.10 (very precise) /Black=0.11 (very precise)} 1/2-1/2

[Event "44th Chess Olympiad Open 2022"]
[Site "Chennai"]
[Date "2022.07.31"]
[Round "3.6"]
[White "Perez Ponsa, Federico"]
[Black "Mamedov, Rauf"]
[Result "0-1"]
[WhiteElo "2554"]
[BlackElo "2656"]
[Annotator "TA"]
[PlyCount "88"]
[EventDate "2022.??.??"]
[TimeControl "60"]

{[%evp 16,88,50,26,29,18,20,10,33,19,27,13,24,24,36,20,20,31,29,4,34,0,0,0,0,
-9,0,0,0,0,1,-134,-145,-135,-156,-141,-116,-747,-745,-729,-616,-739,-690,-739,
-743,-728,-756,-720,-734,-844,-824,-1132,-1016,-1016,-986,-988,-857,-902,-806,
-906,-479,-602,-588,-686,-686,-686,-679,-675,-657,-712,-656,-1054,-1044,-985,
-800]} 1. e4 {[%emt 0:00:04]} c5 {[%emt 0:00:27]} 2. Nf3 {[%emt 0:00:06]} d6 {
[%emt 0:00:03]} 3. d4 {[%emt 0:00:08]} cxd4 {[%emt 0:00:04]} 4. Nxd4 {[%emt 0:
00:00]} Nf6 {[%emt 0:00:05]} 5. Nc3 {[%emt 0:00:06]} Nc6 {[%emt 0:00:03]} 6.
Bg5 {[%emt 0:00:21]} e6 {[%emt 0:00:04]} 7. Qd2 {[%emt 0:00:35]} a6 {[%emt 0:
00:00]} 8. O-O-O {[%emt 0:00:21]} Bd7 {[%emt 0:00:09]} 9. Kb1 {[%emt 0:00:34]}
Be7 {[%emt 0:03:52] B67: Sicilian: Richter-Rauzer: 7...a6 8 0-0-0 Bd7, lines
without 9 f4 Be7.} 10. Nxc6 {[%emt 0:02:37]} Bxc6 {[%emt 0:03:18]} 11. f3 {
[%emt 0:00:07]} h6 $5 {[%emt 0:00:23] The position is equal. Leaves trodden
paths.} 12. Be3 {[%emt 0:01:22]} Qc7 {[%emt 0:01:51]} 13. h4 {[%emt 0:00:00]}
b5 {[%emt 0:16:59]} 14. Ne2 {[%emt 0:07:20]} Nd7 {[%emt 0:14:51]} 15. Nd4 {
[%emt 0:06:39]} Bb7 {[%emt 0:00:33]} 16. g4 {[%emt 0:12:19][%cal Yg2g4,Yg4g5]}
Ne5 {[%emt 0:02:12]} 17. Be2 {[%emt 0:11:09]} Rc8 {[%emt 0:00:00]} 18. g5 {
[%emt 0:03:52][%cal Rg5h6]} h5 {[%emt 0:00:25]} 19. Rhe1 {[%emt 0:00:00] [#]}
O-O $146 {[%emt 0:05:13]} ({Predecessor:} 19... g6 20. b3 O-O 21. Bd3 d5 22.
Bf4 Bd6 23. exd5 Bxd5 24. Bxb5 Nxf3 25. Nxf3 Bxf4 26. Qf2 axb5 27. Nd4 Bg3 {
0-1 (27) Potkin,V (2597)-Rasulov,V (2527) Chess.com INT 2018}) 20. Bf2 {
[%emt 0:10:06]} Rfd8 {[%emt 0:03:48]} 21. f4 {[%emt 0:03:47][%csl Ye5,Yh5]}
Bxe4 {[%emt 0:04:15][%cal Ye4g6]} 22. Bxh5 {[%emt 0:02:07]} (22. fxe5 dxe5 23.
Bc4 Bf5 $17) 22... Nc4 {[%emt 0:02:05][%cal Ye5c4,Yc4b2,Yb2a4,Ya4c3]} 23. Qe2 {
[%emt 0:03:23]} (23. Qc1 $1 $11 d5 24. g6 fxg6 25. Bg4) 23... d5 $17 {[%emt 0:
02:23][%cal Yc4b2] ...Nxb2! is the strong threat.} 24. g6 {[%emt 0:00:00] [#]}
Nxb2 $1 {[%emt 0:03:26] Black is more active.} 25. gxf7+ {[%emt 0:01:12]} Kh8 {
[%emt 0:00:54] Chess con chili.} 26. Bf3 $2 {[%emt 0:00:00] White does not
recover from this.} ({But not} 26. Nxe6 $2 Qc3 27. Qd2 Nxd1 28. Qxc3 Nxc3+ $19)
(26. Rd3 $17 Nc4 27. Bg4 Bxd3 28. Qxd3 Na3+ 29. Kb2) 26... Na4 $19 {[%emt 0:02:
38] Black is clearly winning.} 27. Rd3 {[%emt 0:00:23] Against Qc3} Bxd3 {
[%emt 0:01:00]} 28. Qxd3 {[%emt 0:00:02]} Nc3+ {[%emt 0:00:37]} 29. Kc1 {
[%emt 0:02:08]} Qxf4+ {[%emt 0:01:40]} 30. Kb2 {[%emt 0:00:14]} Qd6 {[%emt 0:
09:49] ( -> ...Qa3+)} 31. Kc1 {[%emt 0:01:14]} Nxa2+ {[%emt 0:05:57]} 32. Kd2 {
[%emt 0:00:59]} Qf4+ {[%emt 0:00:04]} 33. Re3 {[%emt 0:01:46]} Bb4+ {[%emt 0:
01:13]} 34. Kd1 {[%emt 0:00:08]} Nc3+ {[%emt 0:00:00]} 35. Kc1 {[%emt 0:01:01]}
Ba3+ {[%emt 0:00:30]} 36. Kd2 {[%emt 0:00:01]} Ne4+ {[%emt 0:00:08]} 37. Ke2 {
[%emt 0:00:02]} Rc3 {[%emt 0:04:34]} 38. Nxe6 {[%emt 0:01:31]} Qf6 {[%emt 0:01:
03]} ({Stronger than} 38... Rxd3 39. Nxf4 Rxe3+ 40. Bxe3 $17) 39. Bxe4 {
[%emt 0:02:04]} Rxd3 {[%emt 0:00:03]} 40. Bxd3 {[%emt 0:00:04]} Rd7 {[%emt 0:
00:49]} 41. Nf4 {[%emt 0:09:14] White wants to mate with Re8+.} Qxf7 {[%emt 0:
06:54]} 42. Rf3 {[%emt 0:07:37]} Re7+ {[%emt 0:00:00]} 43. Kf1 {[%emt 0:00:33]
[#]} Re4 $1 {[%emt 0:00:24]} 44. Bg3 {[%emt 0:00:00] [#]} Bc1 $1 {[%emt 0:02:
33] Weighted Error Value: White=0.50/Black=0.11 (very precise)} 0-1

[Event "44th Chess Olympiad Open 2022"]
[Site "Chennai"]
[Date "2022.07.31"]
[Round "3.6"]
[White "Flores, Diego"]
[Black "Abasov, Nijat"]
[Result "1/2-1/2"]
[WhiteElo "2528"]
[BlackElo "2633"]
[Annotator "RC"]
[PlyCount "96"]
[EventDate "2022.??.??"]
[TimeControl "60"]

1. d4 {[%emt 0:01:03]} d5 {[%emt 0:02:32]} 2. c4 {[%emt 0:00:10]} e6 {[%emt 0:
00:00]} 3. Nc3 {[%emt 0:00:37]} c6 {[%emt 0:01:31]} 4. Nf3 {[%emt 0:00:52]} Nf6
{[%emt 0:00:52]} 5. e3 {[%emt 0:04:39]} Nbd7 {[%emt 0:00:54]} 6. a3 {[%emt 0:
00:00]} Bd6 {[%emt 0:01:01]} 7. Bd3 {[%emt 0:00:15]} O-O {[%emt 0:07:59]} 8.
O-O {[%emt 0:02:20]} e5 {[%emt 0:07:13]} 9. cxd5 {[%emt 0:01:10]} cxd5 {
[%emt 0:00:13]} 10. Nb5 {[%emt 0:06:10]} Bb8 {[%emt 0:00:13]} 11. dxe5 {
[%emt 0:00:15]} Nxe5 {[%emt 0:00:07]} 12. Be2 {[%emt 0:00:24]} Ne4 {[%emt 0:00:
00]} 13. Bd2 {[%emt 0:04:50]} Qb6 {[%emt 0:09:24]} 14. Nxe5 {[%emt 0:26:46]}
Bxe5 {[%emt 0:00:21]} 15. Bc3 {[%emt 0:00:59]} Nxc3 {[%emt 0:01:30]} 16. bxc3 {
[%emt 0:02:26]} Rd8 {[%emt 0:05:05]} 17. Rb1 {[%emt 0:04:08]} a6 {[%emt 0:00:
00]} 18. Nd4 {[%emt 0:02:42]} Qc7 {[%emt 0:01:10]} 19. Nf3 {[%emt 0:06:00]}
Bxc3 {[%emt 0:03:07]} 20. Rc1 {[%emt 0:23:08]} Qa5 {[%emt 0:02:43]} 21. Qb3 {
[%emt 0:01:59]} Bf6 {[%emt 0:00:23]} 22. Rfd1 {[%emt 0:00:56]} Be6 {[%emt 0:00:
00]} 23. Nd4 {[%emt 0:01:49]} Bxd4 {[%emt 0:01:56]} 24. Rxd4 {[%emt 0:00:13]}
b5 {[%emt 0:00:03]} 25. a4 {[%emt 0:02:22]} Rac8 {[%emt 0:01:17]} 26. Rcd1 {
[%emt 0:01:41]} Rc3 {[%emt 0:00:52]} 27. Qb4 {[%emt 0:00:20]} Qxb4 {[%emt 0:00:
00]} 28. Rxb4 {[%emt 0:00:05]} d4 {[%emt 0:06:40]} 29. axb5 {[%emt 0:02:04]}
axb5 {[%emt 0:00:07]} 30. exd4 {[%emt 0:01:40]} Bb3 {[%emt 0:02:28]} 31. Rb1 {
[%emt 0:00:36]} Bc4 {[%emt 0:00:14]} 32. Bxc4 {[%emt 0:00:28]} bxc4 {[%emt 0:
00:00]} 33. g3 {[%emt 0:02:34]} Kf8 {[%emt 0:01:33]} 34. Ra1 {[%emt 0:00:34]}
Rxd4 {[%emt 0:05:45]} 35. Rb7 {[%emt 0:00:06]} g5 {[%emt 0:00:34]} 36. Ra5 {
[%emt 0:01:20]} g4 {[%emt 0:06:02]} 37. h3 {[%emt 0:00:16]} Rd1+ {[%emt 0:00:
00]} 38. Kg2 {[%emt 0:00:07]} gxh3+ {[%emt 0:00:06]} 39. Kxh3 {[%emt 0:00:09]}
Rf3 {[%emt 0:00:05]} 40. Ra2 {[%emt 0:00:52]} c3 {[%emt 0:00:37]} 41. Kg2 {
[%emt 0:01:28]} Rdd3 {[%emt 0:02:56]} 42. Rc7 {[%emt 0:00:53]} Rf6 {[%emt 0:00:
00]} 43. Rc2 {[%emt 0:00:36]} Rff3 {[%emt 0:00:10]} 44. Ra2 {[%emt 0:00:47]}
Kg7 {[%emt 0:00:36]} 45. Kf1 {[%emt 0:07:36]} Rf6 {[%emt 0:01:07]} 46. Kg2 {
[%emt 0:01:30]} Kg6 {[%emt 0:03:02]} 47. Rc2 {[%emt 0:02:14]} Rff3 {[%emt 0:00:
00]} 48. Kf1 {[%emt 0:00:55]} Rd2 {[%emt 0:03:06]} 1/2-1/2

[Event "44th Chess Olympiad Open 2022"]
[Site "Chennai"]
[Date "2022.07.31"]
[Round "3.7"]
[White "Van Foreest, Jorden"]
[Black "Blomqvist, Erik"]
[Result "1-0"]
[WhiteElo "2678"]
[BlackElo "2521"]
[Annotator "TA"]
[PlyCount "105"]
[EventDate "2022.??.??"]
[TimeControl "60"]

{[%evp 13,105,23,26,6,16,14,53,3,47,10,10,8,39,33,36,39,43,25,42,27,54,0,38,31,
32,29,20,0,100,114,118,23,260,104,102,114,116,102,113,79,104,0,0,0,0,0,0,0,0,0,
0,0,0,0,44,-11,0,0,-16,0,0,-29,95,109,111,118,118,119,132,59,202,108,406,413,
518,501,476,451,653,384,1299,950,12834,12834,12838,12839,29962,12842,12842,
12843,29984,29985,29987,29988]} 1. e4 {[%emt 0:00:03]} c5 {[%emt 0:00:08]} 2.
Nf3 {[%emt 0:00:10]} d6 {[%emt 0:00:10]} 3. d4 {[%emt 0:00:04]} cxd4 {[%emt 0:
00:00]} 4. Nxd4 {[%emt 0:00:06]} Nf6 {[%emt 0:00:11]} 5. Nc3 {[%emt 0:00:05]}
Nc6 {[%emt 0:00:10]} 6. Bg5 {[%emt 0:00:04]} e6 {[%emt 0:00:18]} 7. Qd2 {
[%emt 0:00:30]} a6 {[%emt 0:00:39]} 8. Nxc6 {[%emt 0:00:19] B66: Sicilian:
Richter-Rauzer: 7...a6 8 0-0-0 h6.} bxc6 {[%emt 0:00:11]} 9. O-O-O {[%emt 0:00:
00][%cal Ye4e5]} Be7 {[%emt 0:09:43]} (9... h6 $5 {[%cal Rh6g5]} 10. Bf4 d5 $14
) 10. h4 $5 {[%emt 0:00:03] Exploring less charted territory.} (10. Bxf6 $14
gxf6 11. Kb1) 10... O-O {[%emt 0:06:59] [#]} 11. g4 $146 {[%emt 0:00:00]} (11.
Bxf6 $5 gxf6 12. Qh6 $11) ({Predecessor:} 11. e5 dxe5 12. Qe1 Qc7 13. Bxf6 Bxf6
14. Ne4 Be7 15. Bc4 a5 16. a3 Rb8 17. Qc3 {½-½ (51) Kohler,A (2121)
-Gurevich,D (2371) Chess.com INT 2022}) 11... d5 {[%emt 0:03:12]} 12. f3 {
[%emt 0:11:16]} Nd7 {[%emt 0:09:08]} 13. Bxe7 {[%emt 0:05:38]} Qxe7 {[%emt 0:
00:00]} 14. h5 {[%emt 0:00:10][%cal Yh4h5,Yh5h6]} Rb8 {[%emt 0:02:53]} 15. h6 {
[%emt 0:00:25]} g6 {[%emt 0:00:34]} 16. a3 {[%emt 0:03:16]} Rd8 {[%emt 0:14:02]
} 17. Be2 {[%emt 0:01:42]} ({White should try} 17. f4 $14) 17... Bb7 {[%emt 0:
12:55]} (17... Nb6 $5 {[%cal Re6e5]}) 18. f4 {[%emt 0:04:57]} (18. exd5 cxd5
19. Qe3 (19. Qd4 e5 $15) 19... Qc5 20. Qxc5 Nxc5 $11) (18. Qd4 e5 19. Qb4 c5
$11) 18... c5 {[%emt 0:05:02]} 19. exd5 {[%emt 0:01:33]} exd5 {[%emt 0:00:00]}
20. Bxa6 {[%emt 0:02:47]} Bxa6 {[%emt 0:08:46]} (20... Nf6 $1 $11 21. Rhe1 Qc7)
21. Nxd5 $16 {[%emt 0:00:05]} Qf8 {[%emt 0:00:30] aiming for ...Bc4.} 22. Qc3 {
[%emt 0:03:25] Prevents Bc4.} (22. Rhe1 $1 $16) 22... f6 $2 {[%emt 0:00:00]} (
22... Re8 $1 $11 {and Black is okay.}) 23. Nc7 {[%emt 0:05:30]} (23. Rhe1 $18)
23... Be2 {[%emt 0:01:13][%csl Yd1,Yg4]} 24. Ne6 $1 {[%emt 0:00:30][%csl Yd8,
Yf8]} Qf7 {[%emt 0:00:25]} 25. Nxd8 {[%emt 0:00:20] 0x0.00208e5b2dccdp-1022s
more active pieces.} Rxd8 {[%emt 0:00:09]} 26. Rd6 {[%emt 0:01:03] Strongly
threatening g5.} Bxg4 {[%emt 0:02:31] [#]} 27. Rg1 {[%emt 0:08:20]} (27. Qxc5
$1 $16 {Black must now prevent Re1.} Rb8 (27... Qe7 28. Qb4) 28. Qd4) 27... Qf8
$36 {[%emt 0:03:52][%csl Yd6,Yh6] White is under pressure.} 28. Qd2 {[%emt 0:
07:39]} Bf5 {[%emt 0:00:53]} 29. Rd1 {[%emt 0:01:11]} Qxh6 {[%emt 0:01:08]} 30.
Rxf6 {[%emt 0:00:05]} Bg4 {[%emt 0:07:34]} (30... Nxf6 31. Qxd8+ Qf8 32. a4)
31. Re1 {[%emt 0:09:34] Chess con chili.} Qh4 {[%emt 0:01:57]} 32. Rd6 {
[%emt 0:00:43]} Rf8 {[%emt 0:00:00]} 33. Kb1 {[%emt 0:04:58]} Nf6 {[%emt 0:02:
02]} 34. Qc3 {[%emt 0:02:01]} ({Better is} 34. Re7 $14) 34... Bf5 {[%emt 0:01:
39]} 35. Qc4+ {[%emt 0:01:13]} Kg7 {[%emt 0:00:28]} 36. Re7+ {[%emt 0:00:11]}
Kh6 $1 {[%emt 0:00:06][%cal Yf6e4]} 37. Rd1 {[%emt 0:04:03]} Ne4 {[%emt 0:00:
36]} 38. Rxe4 $16 {[%emt 0:00:00]} Bxe4 {[%emt 0:00:04]} 39. Qxe4 {[%emt 0:00:
04] Threatens to win with Rh1.} Rxf4 {[%emt 0:00:36] Endgame KQR-KQR} 40. Qc6 {
[%emt 0:03:22] Rh1 is the strong threat.} Qe7 {[%emt 0:01:14]} 41. a4 {[%emt 0:
33:03]} ({White should play} 41. Rd7 $16 Qe1+ 42. Ka2) 41... Rf6 {[%emt 0:11:
45] [#]} (41... Rf7 $1 $14) 42. Qb5 {[%emt 0:00:00]} (42. Qc8 $1 $18 {[%cal
Rc8h3] And now Qh3+ would win.} Rf7 43. Qh8) 42... Rf4 $2 {[%emt 0:07:31] [#]}
(42... Rd6 $16 43. Rxd6 (43. Rh1+ Kg7 $11) 43... Qxd6) 43. a5 $1 $18 {[%emt 0:
00:00][%cal Ya4a5,Ya5a6]} Rb4 {[%emt 0:01:29]} 44. Qd3 {[%emt 0:05:17] Hoping
for a6.} Rd4 {[%emt 0:04:37]} 45. Qh3+ {[%emt 0:00:00]} Rh4 {[%emt 0:00:00]} (
45... Kg7 $142 46. Qc3 (46. Rh1 h5 $16) 46... Kh6 47. Rxd4 cxd4 48. Qd2+ (48.
Qxd4 Qe1+ 49. Ka2 Qxa5+ 50. Kb1 Qe1+ 51. Ka2 Qa5+ 52. Kb3 Qb5+ 53. Kc3 Kg5 $11)
48... g5) 46. Qc3 {[%emt 0:00:00]} Qe2 {[%emt 0:01:56]} (46... Rd4 47. Rxd4
cxd4 48. Qd2+ (48. Qxd4 Qe1+ 49. Ka2 Qxa5+ 50. Kb1 Qe1+ 51. Ka2 Qa5+ 52. Kb3
Kg5 $11) 48... g5) 47. Re1 {[%emt 0:00:00]} ({Not} 47. Rd7 $2 Qf1+ 48. Rd1
Qxd1+ $19) 47... Qf2 {[%emt 0:00:54]} 48. a6 {[%emt 0:00:00]} Ra4 {[%emt 0:00:
00]} 49. Rh1+ {[%emt 0:00:00]} Kg5 {[%emt 0:00:13]} 50. Qe5+ {[%emt 0:00:00]}
Kg4 {[%emt 0:01:07]} 51. Qe6+ {[%emt 0:00:00]} Qf5 {[%emt 0:02:13]} 52. Qe2+ {
[%emt 0:00:00]} Kg5 {[%emt 0:00:12]} 53. Qe7+ {[%emt 0:00:00] Weighted Error
Value: White=0.28 (precise) /Black=0.79} 1-0